fUSD/lending_fUSD_20251118
["ID","MTS","AMOUNT","RATE_DAILY","PERIOD"]
[394356716,1763485842960,-4087.80582312,0.0002,2]
[394356717,1763485842969,-151.0,0.0002,2]
[394356718,1763485842979,-151.0,0.0002,2]
[394356719,1763485842989,-151.0,0.0002,2]
[394356720,1763485842999,-151.0,0.0002,2]
[394356721,1763485843009,-183.398054,0.0002,2]
[394356722,1763485843018,-151.0,0.0002,2]
[394356723,1763485843028,-151.0,0.0002,2]
[394356724,1763485843039,-151.0,0.0002,2]
[394356725,1763485843048,-616.102958,0.0002,2]
[394356726,1763485843057,-487.30228762,0.0002,2]
[394356727,1763485843088,-128.80067038,0.0002,2]
[394356728,1763485843097,-616.102958,0.0002,2]
[394356729,1763485843107,-616.102958,0.0002,2]
[394356730,1763485843116,-151.0,0.0002,2]
[394356731,1763485843126,-309.8129135,0.00020144,2]
[394356732,1763485843135,-150.41,0.00020172,2]
[394356733,1763485843144,-150.41,0.00020172,2]
[394356734,1763485843153,-150.0,0.00020173,2]
[394356735,1763485843162,-150.41,0.00020177,2]
[394356736,1763485843171,-500.0,0.00020182,2]
[394356737,1763485843181,-3907.43357162,0.00020182,2]
[394356738,1763485843193,-362.60536559,0.00020182,2]
[394356743,1763485845788,-477.0000032,0.00017986,2]
[394356744,1763485845828,-1987.5974968,0.00017986,2]
[394356745,1763485845840,-2464.5975,0.00020126,2]
[394356746,1763485845850,-1772.64230429,0.00020182,2]
[394356747,1763485845881,-376.46938642,0.00020182,2]
[394356748,1763485845893,-154880.64773488,0.00020182,2]
[394356749,1763485845903,-7050.8337202,0.00020187,2]
[394356750,1763485845913,-796.74,0.00020187,2]
[394356751,1763485845924,-300.0,0.00020236,2]
[394356752,1763485845935,-1156.8620625,0.0002026,2]
[394356753,1763485845945,-150.41,0.00020343,2]
[394356754,1763485845956,-55934.2001094,0.00020353,2]
[394356755,1763485845966,-44887.492595,0.00020353,2]
[394356756,1763485845977,-171.28,0.00020394,2]
[394356757,1763485845987,-166.66,0.0002041,2]
[394356758,1763485845997,-12897.92788768,0.00020517,2]
[394356759,1763485846007,-151.0,0.00020548,2]
[394356760,1763485846017,-151.0,0.00020548,2]
[394356761,1763485846027,-151.0,0.00020548,2]
[394356762,1763485846039,-211.74376832,0.00020548,2]
[394356763,1763485846049,-250.0,0.00020721,2]
[394356764,1763485846059,-2426.51365,0.0002082,2]
[394356765,1763485846069,-1700.0,0.000209,7]
[394356766,1763485846078,-288.25,0.00020917,2]
[394356767,1763485846088,-1000.0,0.00020917,2]
[394356768,1763485846099,-150.41,0.00020941,2]
[394356769,1763485846109,-150.41,0.00020941,2]
[394356770,1763485846119,-1517.41,0.00020951,2]
[394356771,1763485846130,-3789.43,0.00020951,2]
[394356772,1763485846140,-499.99,0.00020951,2]
[394356773,1763485846150,-9999.99,0.00020951,2]
[394356774,1763485846160,-9729.71,0.00020951,2]
[394356775,1763485846170,-9999.99,0.00020951,2]
[394356776,1763485846185,-9999.99,0.00020951,2]
[394356777,1763485846195,-150.99,0.00020951,2]
[394356779,1763485846205,-900.61,0.00020951,2]
[394356781,1763485846216,-1429.42,0.00020951,2]
[394356783,1763485846226,-299.99,0.00020951,7]
[394356785,1763485846236,-75829.44,0.00020951,2]
[394356787,1763485846248,-9999.99,0.00020951,2]
[394356789,1763485846257,-999.99,0.00020951,2]
[394356791,1763485846268,-154.235253,0.00020951,2]
[394356793,1763485846277,-151.0,0.00020951,2]
[394356795,1763485846290,-616.102958,0.00020951,2]
[394356797,1763485846300,-616.102958,0.00020951,2]
[394356799,1763485846310,-616.102958,0.00020951,2]
[394356801,1763485846321,-616.102958,0.00020951,2]
[394356804,1763485846333,-151.0,0.00020951,2]
[394356806,1763485846343,-6353.55687192,0.00021,2]
[394356808,1763485846353,-9388.24484194,0.00021,2]
[394356810,1763485846363,-1183.86800084,0.00021,2]
[394356812,1763485846377,-195.41413673,0.00021,2]
[394356814,1763485846388,-1275.83998097,0.00021,2]
[394356816,1763485846398,-350.0,0.00021,2]
[394356818,1763485846409,-823.0,0.00021158,2]
[394356820,1763485846420,-15166.77048451,0.00021215,2]
[394356823,1763485846431,-350.0,0.00021268,2]
[394356826,1763485846441,-171.28,0.00021365,2]
[394356828,1763485846452,-150.41,0.00021468,2]
[394356830,1763485846462,-3292.0,0.00021478,2]
[394356832,1763485846472,-51926.8032785,0.000215,2]
[394356835,1763485846482,-220.38401252,0.000215,2]
[394356836,1763485846493,-500.0,0.00021756,2]
[394356837,1763485846503,-151.0,0.00021757,2]
[394356838,1763485846514,-151.0,0.00021757,2]
[394356839,1763485846524,-151.0,0.00021757,2]
[394356840,1763485846534,-151.0,0.00021757,2]
[394356841,1763485846549,-298.814415,0.00021757,2]
[394356842,1763485846559,-361.11209941,0.00021816,2]
[394356843,1763485846569,-479.30025826,0.0002182,2]
[394356844,1763485846579,-2426.51365,0.0002182,2]
[394356845,1763485846590,-876.00445335,0.00021846,2]
[394356846,1763485846601,-5000.0,0.00021918,2]
[394356847,1763485846612,-530.62,0.00021974,2]
[394356848,1763485846623,-868.344002,0.00022,4]
[394356851,1763485846633,-789.55682254,0.00022,7]
[394356853,1763485846646,-4191.0,0.0002201,2]
[394356855,1763485846656,-1000.0,0.00022021,2]
[394356857,1763485846668,-200.0,0.00022021,2]
[394356859,1763485846679,-339.67569384,0.0002213,2]
[394356861,1763485846690,-2464.5975,0.00022266,2]
[394356862,1763485846700,-150.0,0.00022315,2]
[394356863,1763485846711,-150.0,0.00022315,2]
[394356864,1763485846722,-150.0,0.00022315,2]
[394356865,1763485846732,-150.0,0.00022315,2]
[394356866,1763485846742,-150.0,0.00022315,2]
[394356867,1763485846753,-150.0,0.00022315,2]
[394356868,1763485846763,-150.0,0.00022315,2]
[394356869,1763485846774,-150.0,0.00022315,2]
[394356870,1763485846784,-150.0,0.00022315,2]
[394356871,1763485846795,-150.0,0.00022315,2]
[394356872,1763485846805,-150.00000001,0.00022315,2]
[394356873,1763485846815,-150.0,0.00022315,2]
[394356874,1763485846825,-150.0,0.00022315,2]
[394356875,1763485846836,-171.28,0.00022336,2]
[394356876,1763485846846,-150.41,0.00022368,2]
[394356877,1763485846857,-150.41,0.00022368,2]
[394356878,1763485846867,-150.41,0.00022368,2]
[394356879,1763485846878,-300.0,0.00022377,2]
[394356880,1763485846893,-300.0,0.00022377,2]
[394356881,1763485846908,-500.0,0.00022377,2]
[394356882,1763485846918,-161299.7983628,0.00022378,2]
[394356883,1763485846930,-151.0,0.00022378,2]
[394356884,1763485846940,-616.102958,0.00022378,2]
[394356885,1763485846951,-616.102958,0.00022378,2]
[394356886,1763485846961,-616.102958,0.00022378,2]
[394356887,1763485846972,-616.102958,0.00022378,2]
[394356888,1763485846983,-151.0,0.00022378,2]
[394356889,1763485846994,-7050.8337202,0.00022386,2]
[394356890,1763485847004,-150.0,0.00022492,4]
[394356891,1763485847016,-150.0,0.00022506,4]
[394356892,1763485847027,-1156.8620625,0.00022533,2]
[394356893,1763485847039,-150.0,0.00022669,4]
[394356894,1763485847050,-150.0,0.00022669,4]
[394356895,1763485847061,-150.0,0.00022669,4]
[394356896,1763485847072,-150.0,0.00022697,4]
[394356897,1763485847082,-150.41,0.00022712,2]
[394356898,1763485847094,-300.0,0.00022721,2]
[394356899,1763485847104,-300.0,0.00022721,2]
[394356900,1763485847115,-55934.2001094,0.00022722,2]
[394356901,1763485847126,-44887.492595,0.00022722,2]
[394356902,1763485847137,-150.0,0.00022728,4]
[394356903,1763485847147,-9551.71,0.000228,7]
[394356904,1763485847158,-2426.51365,0.0002282,2]
[394356906,1763485847168,-150.0,0.00022846,4]
[394356907,1763485847178,-1000.0,0.00022847,2]
[394356908,1763485847188,-150.0,0.00022887,4]
[394356909,1763485847198,-150.0,0.00022935,4]
[394356910,1763485847208,-400.0,0.00023,2]
[394356911,1763485847219,-288.25,0.00023009,2]
[394356912,1763485847229,-1000.0,0.00023009,2]
[394356913,1763485847240,-150.0,0.00023023,4]
[394356914,1763485847250,-150.0,0.00023023,4]
[394356915,1763485847264,-150.0,0.00023023,4]
[394356916,1763485847275,-150.0,0.00023078,4]
[394356917,1763485847285,-2564.61353498,0.000231,2]
[394356918,1763485847296,-696.0,0.00023128,2]
[394356919,1763485847530,-150.41,0.0002314,2]
[394356920,1763485847541,-150.0,0.00023142,4]
[394356921,1763485847552,-150.0,0.00023142,4]
[394356922,1763485847562,-12897.92788768,0.0002315,2]
[394356923,1763485847573,-150.0,0.00023201,4]
[394356924,1763485847586,-150.0,0.00023269,4]
[394356925,1763485847595,-171.28,0.00023308,2]
[394356926,1763485847605,-150.0,0.00023378,4]
[394356927,1763485847615,-150.0,0.00023378,4]
[394356928,1763485847625,-150.0,0.00023378,4]
[394356929,1763485847634,-150.0,0.00023459,4]
[394356930,1763485847644,-200.0,0.000235,2]
[394356931,1763485847653,-15166.77048451,0.00023536,2]
[394356932,1763485847665,-150.0,0.00023555,4]
[394356933,1763485847675,-150.0,0.00023555,4]
[394356934,1763485847684,-150.0,0.00023555,4]
[394356935,1763485847694,-150.0,0.00023555,4]
[394356936,1763485847704,-4609.0,0.00023596,2]
[394356937,1763485847714,-150.0,0.0002365,4]
[394356938,1763485847723,-1000.0,0.00023673,2]
[394356939,1763485847733,-353.73,0.00023699,2]
[394356940,1763485847742,-150.0,0.00023732,4]
[394356941,1763485847752,-150.0,0.00023732,4]
[394356942,1763485847761,-150.0,0.00023732,4]
[394356943,1763485847771,-150.0,0.00023841,4]
[394356944,1763485847781,-150.0,0.00023909,4]
[394356945,1763485847792,-530.62,0.00023948,2]
[394356946,1763485847801,-150.0,0.00023968,4]
[394356947,1763485847810,-150.0,0.00023968,4]
[394356948,1763485847821,-1012.37672263,0.00024,2]
[394356949,1763485847831,-150.0,0.00024032,4]
[394356950,1763485847841,-150.0,0.00024086,4]
[394356951,1763485847851,-150.0,0.00024086,4]
[394356952,1763485847861,-150.0,0.00024086,4]
[394356953,1763485847871,-1925.33,0.00024093,2]
[394356954,1763485847882,-150.0,0.00024175,4]
[394356955,1763485847892,-418.2456344,0.0002421,2]
[394356956,1763485847902,-3664.96789332,0.0002421,2]
[394356957,1763485847912,-150.0,0.00024222,4]
[394356958,1763485847922,-450.24,0.00024225,30]
[394356959,1763485847933,-150.0,0.00024263,4]
[394356960,1763485847942,-171.28,0.00024279,2]
[394356961,1763485847951,-281.0125173,0.00024295,2]
[394356962,1763485847961,-9551.71,0.000243,7]
[394356963,1763485847970,-150.0,0.00024381,4]
[394356964,1763485847993,-2464.5975,0.00024406,2]
[394356965,1763485848005,-150.0,0.00024413,4]
[394356966,1763485848017,-150.0,0.0002444,4]
[394356967,1763485848028,-150.0,0.0002444,4]
[394356968,1763485848040,-150.0,0.0002444,4]
[394356969,1763485848052,-1000.0,0.00024499,2]
[394356970,1763485848063,-150.41,0.00024563,2]
[394356971,1763485848074,-150.41,0.00024563,2]
[394356972,1763485848086,-300.0,0.00024572,2]
[394356973,1763485848097,-309.52096424,0.00024572,2]
[394356974,1763485848108,-443.15926361,0.00024573,2]
[394356975,1763485848118,-151.0,0.00024573,7]
[394356976,1763485848129,-151.0,0.00024573,7]
[394356977,1763485848139,-616.102958,0.00024573,7]
[394356978,1763485848150,-616.102958,0.00024573,7]
[394356979,1763485848160,-616.102958,0.00024573,7]
[394356980,1763485848172,-616.102958,0.00024573,7]
[394356981,1763485848182,-161299.7983628,0.00024573,2]
[394356982,1763485848192,-7050.8337202,0.00024586,2]
[394356983,1763485848202,-259.549243,0.00024586,7]
[394356984,1763485848213,-151.0,0.00024586,7]
[394356985,1763485848223,-150.0,0.00024604,4]
[394356986,1763485848235,-150.0,0.00024617,4]
[394356987,1763485848245,-150.41,0.00024648,2]
[394356988,1763485848256,-592.41966616,0.0002465,2]
[394356989,1763485848267,-359.04770549,0.00024657,2]
[394356990,1763485848277,-1000.0,0.00024658,2]
[394356991,1763485848287,-165.823155,0.00024658,7]
[394356992,1763485848297,-154.082696,0.00024658,7]
[394356993,1763485848307,-151.0,0.00024658,7]
[394356994,1763485848318,-165.104213,0.00024658,7]
[394356995,1763485848333,-151.0,0.00024658,7]
[394356996,1763485848344,-151.0,0.00024658,7]
[394356997,1763485848354,-151.0,0.00024658,7]
[394356998,1763485848365,-151.0,0.00024658,7]
[394356999,1763485848378,-151.0,0.00024658,7]
[394357000,1763485848389,-151.0,0.00024658,7]
[394357001,1763485848399,-151.0,0.00024658,7]
[394357002,1763485848412,-151.0,0.00024658,7]
[394357003,1763485848422,-253.50992,0.00024658,7]
[394357004,1763485848433,-151.0,0.00024658,7]
[394357005,1763485848444,-151.0,0.00024658,7]
[394357006,1763485848456,-189.330784,0.00024658,7]
[394357007,1763485848467,-157.319793,0.00024658,7]
[394357008,1763485848477,-151.0,0.00024658,7]
[394357009,1763485848487,-151.0,0.00024658,7]
[394357010,1763485848498,-151.0,0.00024658,7]
[394357011,1763485848509,-153.589169,0.00024658,7]
[394357012,1763485848520,-551.0,0.00024658,2]
[394357013,1763485848530,-551.0,0.00024658,2]
[394357014,1763485848541,-551.0,0.00024658,2]
[394357015,1763485848551,-551.0,0.00024658,2]
[394357016,1763485848561,-551.0,0.00024658,2]
[394357017,1763485848572,-551.0,0.00024658,2]
[394357018,1763485848582,-551.0,0.00024658,2]
[394357019,1763485848596,-346.0,0.00024658,2]
[394357020,1763485848606,-346.0,0.00024658,2]
[394357021,1763485848616,-346.0,0.00024658,2]
[394357022,1763485848626,-346.0,0.00024658,2]
[394357023,1763485848636,-346.0,0.00024658,2]
[394357024,1763485848646,-346.0,0.00024658,2]
[394357025,1763485848656,-346.0,0.00024658,2]
[394357026,1763485848667,-346.0,0.00024658,2]
[394357027,1763485848677,-346.0,0.00024658,2]
[394357028,1763485848687,-346.0,0.00024658,2]
[394357029,1763485848697,-346.0,0.00024658,2]
[394357030,1763485848711,-346.0,0.00024658,2]
[394357031,1763485848721,-346.0,0.00024658,2]
[394357032,1763485848731,-346.0,0.00024658,2]
[394357033,1763485848741,-151.0,0.00024658,7]
[394357034,1763485848751,-151.0,0.00024658,7]
[394357035,1763485848762,-184.958523,0.00024658,7]
[394357036,1763485848773,-215.60667,0.00024658,7]
[394357037,1763485848783,-151.0,0.00024658,7]
[394357038,1763485848793,-215.60667,0.00024658,7]
[394357039,1763485848804,-215.60667,0.00024658,7]
[394357040,1763485848814,-215.60667,0.00024658,7]
[394357041,1763485848824,-215.60667,0.00024658,7]
[394357042,1763485848834,-215.60667,0.00024658,7]
[394357043,1763485848843,-215.60667,0.00024658,7]
[394357044,1763485848853,-215.60667,0.00024658,7]
[394357045,1763485848863,-215.60667,0.00024658,7]
[394357046,1763485848872,-215.60667,0.00024658,7]
[394357047,1763485848882,-215.60667,0.00024658,7]
[394357048,1763485848892,-215.60667,0.00024658,7]
[394357049,1763485848906,-151.0,0.00024658,7]
[394357050,1763485848916,-151.0,0.00024658,7]
[394357051,1763485848925,-151.0,0.00024658,7]
[394357052,1763485848935,-151.0,0.00024658,7]
[394357053,1763485848945,-151.0,0.00024658,7]
[394357054,1763485848956,-277.163534,0.00024658,7]
[394357055,1763485848966,-151.0,0.00024658,7]
[394357056,1763485848976,-151.0,0.00024658,7]
[394357057,1763485848986,-151.996499,0.00024658,7]
[394357058,1763485848995,-421.0,0.00024658,2]
[394357059,1763485849005,-421.0,0.00024658,2]
[394357060,1763485849015,-421.0,0.00024658,2]
[394357061,1763485849025,-421.0,0.00024658,2]
[394357062,1763485849035,-421.0,0.00024658,2]
[394357063,1763485849046,-421.0,0.00024658,2]
[394357064,1763485849056,-421.0,0.00024658,2]
[394357065,1763485849067,-151.0,0.00024658,7]
[394357066,1763485849077,-151.0,0.00024658,7]
[394357067,1763485849087,-152.795866,0.00024658,7]
[394357068,1763485849100,-200.609981,0.00024658,7]
[394357069,1763485849110,-417.0,0.00024658,2]
[394357070,1763485849119,-417.0,0.00024658,2]
[394357071,1763485849129,-417.0,0.00024658,2]
[394357072,1763485849139,-417.0,0.00024658,2]
[394357073,1763485849148,-417.0,0.00024658,2]
[394357074,1763485849158,-417.0,0.00024658,2]
[394357075,1763485849168,-417.0,0.00024658,2]
[394357076,1763485849177,-417.0,0.00024658,2]
[394357077,1763485849187,-417.0,0.00024658,2]
[394357078,1763485849197,-417.0,0.00024658,2]
[394357079,1763485849207,-417.0,0.00024658,2]
[394357080,1763485849218,-417.0,0.00024658,2]
[394357081,1763485849228,-417.0,0.00024658,2]
[394357082,1763485849238,-417.0,0.00024658,2]
[394357083,1763485849248,-153.815231,0.00024658,7]
[394357084,1763485849258,-151.0,0.00024658,7]
[394357085,1763485849268,-151.0,0.00024658,7]
[394357086,1763485849277,-151.0,0.00024658,7]
[394357087,1763485849287,-151.0,0.00024658,7]
[394357088,1763485849303,-151.0,0.00024658,7]
[394357089,1763485849313,-151.0,0.00024658,7]
[394357090,1763485849324,-153.609568,0.00024658,7]
[394357091,1763485849334,-151.0,0.00024658,7]
[394357092,1763485849344,-299.002942,0.00024658,7]
[394357093,1763485849354,-151.0,0.00024658,7]
[394357094,1763485849369,-151.0,0.00024658,7]
[394357095,1763485849380,-151.0,0.00024658,7]
[394357096,1763485849390,-151.0,0.00024658,7]
[394357097,1763485849401,-151.0,0.00024658,7]
[394357098,1763485849411,-151.0,0.00024658,7]
[394357099,1763485849421,-151.0,0.00024658,7]
[394357100,1763485849431,-151.0,0.00024658,7]
[394357101,1763485849441,-154.499736,0.00024658,7]
[394357102,1763485849452,-151.0,0.00024658,7]
[394357103,1763485849462,-153.51226,0.00024658,7]
[394357104,1763485849472,-151.0,0.00024658,7]
[394357105,1763485849482,-151.0,0.00024658,7]
[394357106,1763485849492,-151.0,0.00024658,7]
[394357107,1763485849502,-151.0,0.00024658,7]
[394357108,1763485849512,-151.0,0.00024658,7]
[394357109,1763485849522,-151.0,0.00024658,7]
[394357110,1763485849532,-155.471458,0.00024658,7]
[394357111,1763485849543,-151.0,0.00024658,7]
[394357112,1763485849552,-151.0,0.00024658,7]
[394357113,1763485849562,-479.14,0.00024658,2]
[394357114,1763485849572,-151.0,0.00024658,7]
[394357115,1763485849581,-151.0,0.00024658,7]
[394357116,1763485849590,-151.0,0.00024658,7]
[394357117,1763485849600,-152.793394,0.00024658,7]
[394357118,1763485849610,-151.0,0.00024658,7]
[394357119,1763485849619,-151.0,0.00024658,7]
[394357120,1763485849629,-151.0,0.00024658,7]
[394357121,1763485849639,-151.0,0.00024658,7]
[394357122,1763485849648,-151.0,0.00024658,7]
[394357123,1763485849658,-151.0,0.00024658,7]
[394357124,1763485849682,-151.0,0.00024658,7]
[394357125,1763485849692,-176.162598,0.00024658,7]
[394357126,1763485849702,-151.0,0.00024658,7]
[394357127,1763485849712,-151.0,0.00024658,7]
[394357128,1763485849722,-151.0,0.00024658,7]
[394357129,1763485849732,-151.0,0.00024658,7]
[394357130,1763485849742,-275.074442,0.00024658,7]
[394357131,1763485849753,-152.45719,0.00024658,7]
[394357132,1763485849763,-151.0,0.00024658,7]
[394357133,1763485849775,-156.325988,0.00024658,7]
[394357134,1763485849786,-151.0,0.00024658,7]
[394357135,1763485849798,-193.063553,0.00024658,7]
[394357136,1763485849808,-151.0,0.00024658,7]
[394357137,1763485849819,-151.0,0.00024658,7]
[394357138,1763485849829,-151.0,0.00024658,7]
[394357139,1763485849839,-151.0,0.00024658,7]
[394357140,1763485849849,-154.259977,0.00024658,7]
[394357141,1763485849860,-151.0,0.00024658,7]
[394357142,1763485849871,-151.0,0.00024658,7]
[394357143,1763485849881,-151.0,0.00024658,7]
[394357144,1763485849892,-151.0,0.00024658,7]
[394357145,1763485849901,-151.0,0.00024658,7]
[394357146,1763485849911,-151.0,0.00024658,7]
[394357147,1763485849921,-151.0,0.00024658,7]
[394357148,1763485849931,-151.0,0.00024658,7]
[394357149,1763485849941,-151.0,0.00024658,7]
[394357150,1763485849951,-151.0,0.00024658,7]
[394357151,1763485849961,-151.0,0.00024658,7]
[394357152,1763485849971,-151.0,0.00024658,7]
[394357153,1763485849981,-151.0,0.00024658,7]
[394357154,1763485849991,-151.0,0.00024658,7]
[394357155,1763485850001,-151.0,0.00024658,7]
[394357156,1763485850011,-151.0,0.00024658,7]
[394357157,1763485850021,-151.0,0.00024658,7]
[394357158,1763485850036,-161.06625,0.00024658,7]
[394357159,1763485850048,-151.0,0.00024658,7]
[394357160,1763485850058,-151.0,0.00024658,7]
[394357161,1763485850069,-151.0,0.00024658,7]
[394357162,1763485850079,-151.0,0.00024658,7]
[394357163,1763485850089,-151.0,0.00024658,7]
[394357164,1763485850100,-151.0,0.00024658,7]
[394357165,1763485850110,-151.0,0.00024658,7]
[394357166,1763485850120,-151.0,0.00024658,7]
[394357167,1763485850131,-151.0,0.00024658,7]
[394357168,1763485850141,-151.0,0.00024658,7]
[394357169,1763485850244,-151.0,0.00024658,7]
[394357170,1763485850254,-218.123202,0.00024658,7]
[394357171,1763485850263,-151.0,0.00024658,7]
[394357172,1763485850273,-151.0,0.00024658,7]
[394357173,1763485850283,-151.0,0.00024658,7]
[394357174,1763485850292,-151.0,0.00024658,7]
[394357175,1763485850301,-151.0,0.00024658,7]
[394357176,1763485850311,-151.0,0.00024658,7]
[394357177,1763485850321,-151.0,0.00024658,7]
[394357178,1763485850331,-151.0,0.00024658,7]
[394357179,1763485850341,-151.0,0.00024658,7]
[394357180,1763485850351,-151.0,0.00024658,7]
[394357181,1763485850361,-151.0,0.00024658,7]
[394357182,1763485850373,-151.0,0.00024658,7]
[394357183,1763485850383,-151.0,0.00024658,7]
[394357184,1763485850393,-151.0,0.00024658,7]
[394357185,1763485850402,-151.0,0.00024658,7]
[394357186,1763485850412,-151.0,0.00024658,7]
[394357187,1763485850421,-152.826328,0.00024658,7]
[394357188,1763485850431,-151.0,0.00024658,7]
[394357189,1763485850441,-151.0,0.00024658,7]
[394357190,1763485850452,-151.0,0.00024658,7]
[394357191,1763485850461,-151.0,0.00024658,7]
[394357192,1763485850470,-151.0,0.00024658,7]
[394357193,1763485850479,-151.0,0.00024658,7]
[394357194,1763485850489,-151.0,0.00024658,7]
[394357195,1763485850498,-151.0,0.00024658,7]
[394357196,1763485850508,-151.0,0.00024658,7]
[394357197,1763485850517,-151.0,0.00024658,7]
[394357198,1763485850526,-151.0,0.00024658,7]
[394357199,1763485850536,-151.0,0.00024658,7]
[394357200,1763485850550,-151.0,0.00024658,7]
[394357201,1763485850559,-157.806079,0.00024658,7]
[394357202,1763485850568,-331.503501,0.00024658,7]
[394357203,1763485850577,-331.503501,0.00024658,7]
[394357204,1763485850586,-331.503501,0.00024658,7]
[394357205,1763485850595,-331.503501,0.00024658,7]
[394357206,1763485850605,-331.503501,0.00024658,7]
[394357207,1763485850614,-331.503501,0.00024658,7]
[394357208,1763485850623,-331.503501,0.00024658,7]
[394357209,1763485850633,-331.503501,0.00024658,7]
[394357210,1763485850642,-331.503501,0.00024658,7]
[394357211,1763485850652,-331.503501,0.00024658,7]
[394357212,1763485850661,-331.503501,0.00024658,7]
[394357213,1763485850671,-331.503501,0.00024658,7]
[394357214,1763485850680,-331.503501,0.00024658,7]
[394357215,1763485850689,-331.503501,0.00024658,7]
[394357216,1763485850698,-331.503501,0.00024658,7]
[394357217,1763485850708,-331.503501,0.00024658,7]
[394357218,1763485850717,-151.0,0.00024658,7]
[394357219,1763485850726,-151.0,0.00024658,7]
[394357220,1763485850735,-151.0,0.00024658,7]
[394357221,1763485850744,-151.0,0.00024658,7]
[394357222,1763485850753,-151.0,0.00024658,7]
[394357223,1763485850763,-151.0,0.00024658,7]
[394357224,1763485850772,-151.0,0.00024658,7]
[394357225,1763485850781,-151.0,0.00024658,7]
[394357226,1763485850789,-151.0,0.00024658,7]
[394357227,1763485850799,-151.0,0.00024658,7]
[394357228,1763485850808,-151.0,0.00024658,7]
[394357229,1763485850817,-151.0,0.00024658,7]
[394357230,1763485850826,-168.682896,0.00024658,7]
[394357231,1763485850836,-151.0,0.00024658,7]
[394357232,1763485850845,-151.0,0.00024658,7]
[394357233,1763485850854,-151.0,0.00024658,7]
[394357234,1763485850863,-151.0,0.00024658,7]
[394357235,1763485850872,-151.0,0.00024658,7]
[394357236,1763485850882,-158.29204,0.00024658,7]
[394357237,1763485850891,-151.0,0.00024658,7]
[394357238,1763485850901,-151.0,0.00024658,7]
[394357239,1763485850910,-151.0,0.00024658,7]
[394357240,1763485850919,-151.0,0.00024658,7]
[394357241,1763485850929,-151.0,0.00024658,7]
[394357242,1763485850938,-151.0,0.00024658,7]
[394357243,1763485850948,-151.0,0.00024658,7]
[394357244,1763485850957,-151.0,0.00024658,7]
[394357245,1763485850967,-151.0,0.00024658,7]
[394357246,1763485850976,-151.0,0.00024658,7]
[394357247,1763485850985,-151.0,0.00024658,7]
[394357248,1763485850995,-151.0,0.00024658,7]
[394357249,1763485851005,-151.0,0.00024658,7]
[394357250,1763485851014,-151.0,0.00024658,7]
[394357251,1763485851024,-151.0,0.00024658,7]
[394357252,1763485851034,-187.757036,0.00024658,7]
[394357253,1763485851044,-151.0,0.00024658,7]
[394357254,1763485851053,-151.0,0.00024658,7]
[394357255,1763485851063,-151.0,0.00024658,7]
[394357256,1763485851073,-151.0,0.00024658,7]
[394357257,1763485851082,-151.0,0.00024658,7]
[394357258,1763485851091,-151.0,0.00024658,7]